fUST/lending_fUST_20240501
["ID","MTS","AMOUNT","RATE_DAILY","PERIOD"]
[325033224,1714506656194,-500.0,0.00035342,7]
[325033232,1714506656274,-152.57367532,0.00035342,7]
[325033234,1714506656284,-556.12,0.00035342,7]
[325033235,1714506656293,-500.0,0.00035342,7]
[325033237,1714506656303,-500.0,0.00035342,7]
[325033239,1714506656312,-500.0,0.00035342,7]
[325033241,1714506656322,-500.0,0.00035342,7]
[325033243,1714506656332,-1206.07028754,0.000354,30]
[325033244,1714506656342,-564.28,0.00035515,7]
[325033246,1714506656351,-1006.0,0.00035558,5]
[325033248,1714506656360,-500.0,0.00035616,7]
[325033249,1714506656370,-500.0,0.00035616,7]
[325033251,1714506656379,-1626.24,0.00035616,7]
[325033253,1714506656388,-500.0,0.00035616,7]
[325033255,1714506656397,-502.41,0.00035616,7]
[325033257,1714506656406,-477.54665271,0.00035616,7]
[325033258,1714506656415,-608.6,0.00035616,7]
[325033260,1714506656424,-875.3,0.00035616,7]
[325033262,1714506656433,-501.6,0.00035616,7]
[325033264,1714506656443,-590.01,0.00035616,7]
[325033265,1714506656452,-500.0,0.00035616,7]
[325033267,1714506656461,-500.0,0.00035616,15]
[325033269,1714506656470,-500.0,0.00035616,7]
[325033271,1714506656480,-500.0,0.00035616,7]
[325033273,1714506656489,-500.0,0.00035616,7]
[325033274,1714506656498,-500.0,0.00035616,7]
[325033276,1714506656508,-500.0,0.00035616,7]
[325033278,1714506656517,-511.48,0.00035616,7]
[325033280,1714506656526,-500.0,0.00035616,7]
[325033281,1714506656535,-500.0,0.00035616,7]
[325033283,1714506656544,-500.0,0.00035616,7]
[325033285,1714506656553,-500.0,0.00035616,7]
[325033287,1714506656564,-857.59,0.00035616,7]
[325033289,1714506656573,-500.0,0.00035616,7]
[325033291,1714506656582,-500.0,0.00035616,7]
[325033292,1714506656591,-500.0,0.00035616,7]
[325033294,1714506656600,-596.17,0.00035616,7]
[325033296,1714506656611,-2209.36,0.00035616,7]
[325033298,1714506656621,-531.36,0.00035616,7]
[325033300,1714506656630,-500.0,0.00035616,7]
[325033301,1714506656641,-1171.47,0.00035616,7]
[325033303,1714506656650,-500.0,0.00035616,7]
[325033305,1714506656659,-500.0,0.00035616,7]
[325033307,1714506656669,-500.0,0.00035616,7]
[325033309,1714506656678,-500.0,0.00035616,7]
[325033310,1714506656687,-500.0,0.00035616,7]
[325033312,1714506656696,-500.0,0.00035616,7]
[325033314,1714506656706,-658.82,0.00035616,7]
[325033316,1714506656719,-346.63213298,0.00035616,7]
[325033318,1714506656729,-500.0,0.00035616,7]
[325033320,1714506656738,-516.64,0.00035616,7]
[325033321,1714506656748,-500.0,0.00035616,7]
[325033323,1714506656757,-500.0,0.00035616,7]
[325033325,1714506656766,-500.0,0.00035616,7]
[325033327,1714506656775,-1254.49,0.00035616,7]
[325033329,1714506656784,-816.32,0.00035616,7]
[325033330,1714506656793,-500.0,0.00035616,7]
[325033332,1714506656803,-500.0,0.00035616,7]
[325033334,1714506656812,-753.25,0.00035616,7]
[325033336,1714506656820,-543.25,0.00035616,7]
[325033338,1714506656830,-673.59,0.00035616,7]
[325033339,1714506656839,-500.0,0.00035616,7]
[325033341,1714506656848,-563.47,0.00035616,7]
[325033343,1714506656858,-500.0,0.00035616,7]
[325033345,1714506656867,-556.12,0.00035616,7]
[325033347,1714506656876,-500.0,0.00035616,7]
[325033348,1714506656885,-500.0,0.00035616,7]
[325033350,1714506656894,-500.0,0.00035616,7]
[325033352,1714506656903,-500.0,0.00035616,7]
[325033354,1714506656913,-1413.834031,0.00035616,120]
[325033356,1714506656923,-569.3,0.00035711,14]
[325033357,1714506656932,-1000.0,0.00035789,2]
[325033359,1714506656942,-564.28,0.00035789,7]
[325033361,1714506656951,-154.75239617,0.0003589,2]
[325033363,1714506656960,-354.16,0.0003589,7]
[325033365,1714506656969,-500.0,0.0003589,7]
[325033366,1714506656978,-1626.24,0.0003589,7]
[325033368,1714506656987,-500.0,0.0003589,7]
[325033370,1714506656996,-502.41,0.0003589,7]
[325033372,1714506657006,-608.6,0.0003589,7]
[325033373,1714506657014,-875.3,0.0003589,7]
[325033375,1714506657024,-501.6,0.0003589,7]
[325033377,1714506657033,-590.01,0.0003589,7]
[325033379,1714506657043,-500.0,0.0003589,7]
[325033380,1714506657052,-500.0,0.0003589,7]
[325033382,1714506657061,-623.98318515,0.0003589,7]
[325033384,1714506657070,-276.01644552,0.0003589,7]
[325033386,1714506657080,-500.0,0.0003589,7]
[325033388,1714506657089,-500.0,0.0003589,7]
[325033389,1714506657099,-511.48,0.0003589,7]
[325033391,1714506657110,-500.0,0.0003589,7]
[325033393,1714506657119,-500.0,0.0003589,7]
[325033395,1714506657129,-500.0,0.0003589,7]
[325033396,1714506657138,-500.0,0.0003589,7]
[325033398,1714506657148,-857.59,0.0003589,7]
[325033400,1714506657158,-500.0,0.0003589,7]
[325033402,1714506657167,-500.0,0.0003589,7]
[325033403,1714506657176,-500.0,0.0003589,7]
[325033405,1714506657186,-596.17,0.0003589,7]
[325033407,1714506657194,-2209.36,0.0003589,7]
[325033409,1714506657203,-531.36,0.0003589,7]
[325033410,1714506657212,-500.0,0.0003589,7]
[325033412,1714506657222,-1171.47,0.0003589,7]
[325033414,1714506657231,-500.0,0.0003589,7]
[325033416,1714506657241,-500.0,0.0003589,7]
[325033418,1714506657251,-500.0,0.0003589,7]
[325033419,1714506657260,-500.0,0.0003589,7]
[325033421,1714506657270,-288.32178504,0.0003589,7]
[325033423,1714506657280,-500.0,0.0003589,7]
[325033425,1714506657289,-658.82,0.0003589,7]
[325033427,1714506657299,-649.26783727,0.0003589,7]
[325033428,1714506657309,-516.64,0.0003589,7]
[325033430,1714506657319,-500.0,0.0003589,7]
[325033432,1714506657328,-500.0,0.0003589,7]
[325033434,1714506657337,-500.0,0.0003589,7]
[325033436,1714506657348,-1254.49,0.0003589,7]
[325033437,1714506657359,-816.32,0.0003589,7]
[325033439,1714506657369,-212.98372724,0.0003589,7]
[325033441,1714506657377,-500.0,0.0003589,7]
[325033443,1714506657386,-753.25,0.0003589,7]
[325033444,1714506657395,-543.25,0.0003589,7]
[325033446,1714506657404,-673.59,0.0003589,7]
[325033448,1714506657413,-500.0,0.0003589,7]
[325033450,1714506657422,-563.47,0.0003589,7]
[325033451,1714506657431,-500.0,0.0003589,7]
[325033453,1714506657441,-556.12,0.0003589,7]
[325033455,1714506657450,-500.0,0.0003589,7]
[325033457,1714506657459,-500.0,0.0003589,7]
[325033459,1714506657468,-176.21774259,0.0003589,7]
[325033460,1714506657478,-500.0,0.0003589,7]
[325033462,1714506657487,-564.28,0.00036063,7]
[325033464,1714506657495,-252.62250464,0.00036127,2]
[325033466,1714506657504,-1000.0,0.0003616,2]
[325033468,1714506657513,-500.0,0.00036164,7]
[325033469,1714506657522,-1626.24,0.00036164,7]
[325033471,1714506657531,-502.41,0.00036164,7]
[325033473,1714506657540,-608.6,0.00036164,7]
[325033475,1714506657549,-875.3,0.00036164,7]
[325033477,1714506657560,-501.6,0.00036164,7]
[325033484,1714506657636,-590.01,0.00036164,7]
[325033486,1714506657646,-500.0,0.00036164,7]
[325033488,1714506657655,-500.0,0.00036164,7]
[325033490,1714506657666,-500.0,0.00036164,7]
[325033491,1714506657675,-500.0,0.00036164,7]
[325033493,1714506657685,-511.48,0.00036164,7]
[325033495,1714506657694,-500.0,0.00036164,7]
[325033497,1714506657702,-500.0,0.00036164,7]
[325033499,1714506657712,-500.0,0.00036164,7]
[325033500,1714506657721,-500.0,0.00036164,7]
[325033502,1714506657730,-857.59,0.00036164,7]
[325033504,1714506657740,-500.0,0.00036164,7]
[325033506,1714506657750,-500.0,0.00036164,7]
[325033508,1714506657759,-500.0,0.00036164,7]
[325033510,1714506657769,-596.17,0.00036164,7]
[325033511,1714506657778,-2209.36,0.00036164,7]
[325033513,1714506657787,-531.36,0.00036164,7]
[325033515,1714506657796,-500.0,0.00036164,7]
[325033517,1714506657805,-1171.47,0.00036164,7]
[325033519,1714506657815,-500.0,0.00036164,7]
[325033521,1714506657824,-500.0,0.00036164,7]
[325033522,1714506657833,-500.0,0.00036164,7]
[325033524,1714506657843,-658.82,0.00036164,7]
[325033526,1714506657853,-516.64,0.00036164,7]
[325033528,1714506657865,-500.0,0.00036164,7]
[325033530,1714506657875,-626.43062268,0.00036164,7]
[325033532,1714506657884,-500.0,0.00036164,7]
[325033534,1714506657894,-1254.49,0.00036164,7]
[325033535,1714506657903,-816.32,0.00036164,7]
[325033537,1714506657913,-500.0,0.00036164,7]
[325033539,1714506657923,-753.25,0.00036164,7]
[325033541,1714506657932,-543.25,0.00036164,7]
[325033543,1714506657942,-673.59,0.00036164,7]
[325033545,1714506657951,-500.0,0.00036164,7]
[325033547,1714506657960,-563.47,0.00036164,7]
[325033549,1714506657969,-500.0,0.00036164,7]
[325033550,1714506657979,-556.12,0.00036164,7]
[325033552,1714506657988,-500.0,0.00036164,7]
[325033554,1714506657997,-500.0,0.00036164,7]
[325033556,1714506658006,-500.0,0.00036164,7]
[325033558,1714506658015,-1052.71,0.00036336,58]
[325033560,1714506658026,-564.28,0.00036337,7]
[325033562,1714506658035,-500.0,0.00036438,7]
[325033563,1714506658044,-1626.24,0.00036438,7]
[325033565,1714506658054,-502.41,0.00036438,7]
[325033567,1714506658064,-608.6,0.00036438,7]
[325033569,1714506658073,-875.3,0.00036438,7]
[325033571,1714506658082,-501.6,0.00036438,7]
[325033573,1714506658092,-590.01,0.00036438,7]
[325033574,1714506658101,-590.1,0.00036438,7]
[325033576,1714506658114,-500.0,0.00036438,7]
[325033578,1714506658124,-500.0,0.00036438,7]
[325033580,1714506658134,-500.0,0.00036438,7]
[325033582,1714506658144,-511.48,0.00036438,7]
[325033584,1714506658153,-500.0,0.00036438,7]
[325033587,1714506658163,-500.0,0.00036438,7]
[325033589,1714506658172,-500.0,0.00036438,7]
[325033591,1714506658182,-500.0,0.00036438,7]
[325033592,1714506658191,-857.59,0.00036438,7]
[325033595,1714506658200,-591.68595008,0.00036438,7]
[325033597,1714506658210,-632.59230456,0.00036438,7]
[325033598,1714506658219,-500.0,0.00036438,7]
[325033600,1714506658228,-596.17,0.00036438,7]
[325033602,1714506658237,-2209.36,0.00036438,7]
[325033604,1714506658247,-531.36,0.00036438,7]
[325033606,1714506658257,-500.0,0.00036438,7]
[325033608,1714506658268,-1171.47,0.00036438,7]
[325033611,1714506658278,-500.0,0.00036438,7]
[325033613,1714506658287,-525.35,0.00036438,7]
[325033614,1714506658296,-500.0,0.00036438,7]
[325033616,1714506658305,-658.82,0.00036438,7]
[325033619,1714506658315,-516.64,0.00036438,7]
[325033621,1714506658324,-500.0,0.00036438,7]
[325033622,1714506658333,-500.0,0.00036438,7]
[325033624,1714506658342,-1254.49,0.00036438,7]
[325033626,1714506658351,-816.32,0.00036438,7]
[325033629,1714506658363,-500.0,0.00036438,7]
[325033631,1714506658372,-753.25,0.00036438,7]
[325033633,1714506658381,-543.25,0.00036438,7]
[325033635,1714506658390,-673.59,0.00036438,7]
[325033637,1714506658400,-500.0,0.00036438,7]
[325033638,1714506658409,-563.47,0.00036438,7]
[325033640,1714506658418,-500.0,0.00036438,7]
[325033643,1714506658427,-556.12,0.00036438,7]
[325033645,1714506658437,-500.0,0.00036438,7]
[325033647,1714506658447,-500.0,0.00036438,7]
[325033648,1714506658455,-537.18,0.00036438,7]
[325033650,1714506658465,-564.28,0.00036611,7]
[325033651,1714506658475,-569.3,0.00036634,14]
[325033652,1714506658484,-500.0,0.00036712,7]
[325033653,1714506658493,-1626.24,0.00036712,7]
[325033654,1714506658503,-502.41,0.00036712,7]
[325033655,1714506658512,-608.6,0.00036712,7]
[325033656,1714506658521,-875.3,0.00036712,7]
[325033657,1714506658532,-501.6,0.00036712,7]
[325033658,1714506658541,-590.01,0.00036712,7]
[325033659,1714506658550,-500.0,0.00036712,7]
[325033660,1714506658563,-500.0,0.00036712,7]
[325033661,1714506658572,-300.80735457,0.00036712,7]
[325033662,1714506658581,-511.48,0.00036712,7]
[325033663,1714506658590,-500.0,0.00036712,7]
[325033664,1714506658599,-500.0,0.00036712,7]
[325033665,1714506658610,-591.8,0.00036712,7]
[325033666,1714506658619,-500.0,0.00036712,7]
[325033667,1714506658628,-857.59,0.00036712,7]
[325033668,1714506658640,-626.76,0.00036712,7]
[325033669,1714506658650,-596.17,0.00036712,7]
[325033670,1714506658659,-2209.36,0.00036712,7]
[325033671,1714506658668,-531.36,0.00036712,7]
[325033672,1714506658678,-500.0,0.00036712,7]
[325033673,1714506658689,-1171.47,0.00036712,7]
[325033674,1714506658699,-500.0,0.00036712,7]
[325033675,1714506658708,-500.0,0.00036712,7]
[325033676,1714506658718,-658.82,0.00036712,7]
[325033677,1714506658728,-516.64,0.00036712,7]
[325033678,1714506658737,-387.12851808,0.00036712,7]
[325033679,1714506658746,-432.08132683,0.00036712,7]
[325033680,1714506658756,-1254.49,0.00036712,7]
[325033681,1714506658765,-816.32,0.00036712,7]
[325033682,1714506658774,-500.0,0.00036712,7]
[325033683,1714506658784,-753.25,0.00036712,7]
[325033684,1714506658793,-543.25,0.00036712,7]
[325033685,1714506658802,-673.59,0.00036712,7]
[325033686,1714506658811,-500.0,0.00036712,7]
[325033687,1714506658821,-563.47,0.00036712,7]
[325033688,1714506658830,-500.0,0.00036712,7]
[325033689,1714506658839,-556.12,0.00036712,7]
[325033691,1714506658915,-500.0,0.00036712,7]
[325033692,1714506658925,-330.07187551,0.00036712,7]
[325033693,1714506658934,-516.06251746,0.00036724,8]
[325033694,1714506658944,-153.0,0.00036743,2]
[325033695,1714506658953,-229.100535,0.00036743,2]
[325033696,1714506658963,-153.0,0.00036743,2]
[325033697,1714506658972,-1004.97453702,0.0003684,7]
[325033698,1714506658981,-564.28,0.00036885,7]
[325033699,1714506658990,-500.0,0.00036986,7]
[325033700,1714506658999,-1626.24,0.00036986,7]
[325033702,1714506659008,-502.41,0.00036986,7]
[325033703,1714506659018,-608.6,0.00036986,7]
[325033704,1714506659028,-875.3,0.00036986,7]
[325033706,1714506659037,-501.6,0.00036986,7]
[325033707,1714506659046,-590.01,0.00036986,7]
[325033709,1714506659055,-500.0,0.00036986,7]
[325033710,1714506659065,-500.0,0.00036986,7]
[325033712,1714506659074,-511.48,0.00036986,7]
[325033715,1714506659083,-592.02,0.00036986,7]
[325033716,1714506659092,-500.0,0.00036986,7]
[325033718,1714506659102,-500.0,0.00036986,7]
[325033720,1714506659112,-857.59,0.00036986,7]
[325033722,1714506659122,-596.17,0.00036986,7]
[325033725,1714506659131,-2209.36,0.00036986,7]
[325033727,1714506659141,-531.36,0.00036986,7]
[325033729,1714506659150,-500.0,0.00036986,7]
[325033731,1714506659160,-1171.47,0.00036986,7]
[325033733,1714506659169,-500.0,0.00036986,7]
[325033735,1714506659179,-567.68,0.00036986,7]
[325033737,1714506659188,-658.82,0.00036986,7]
[325033739,1714506659198,-516.64,0.00036986,7]
[325033740,1714506659207,-1254.49,0.00036986,7]
[325033743,1714506659216,-816.32,0.00036986,7]
[325033745,1714506659226,-500.0,0.00036986,7]
[325033747,1714506659235,-753.25,0.00036986,7]
[325033749,1714506659244,-543.25,0.00036986,7]
[325033751,1714506659253,-673.59,0.00036986,7]
[325033753,1714506659262,-500.0,0.00036986,7]
[325033755,1714506659271,-563.47,0.00036986,7]
[325033756,1714506659280,-500.0,0.00036986,7]
[325033758,1714506659290,-556.12,0.00036986,7]
[325033760,1714506659299,-500.0,0.00036986,7]
[325033762,1714506659308,-3512.4842612,0.00037,2]
[325033764,1714506659317,-564.28,0.00037159,7]
[325033766,1714506659326,-425.9480792,0.00037248,2]
[325033768,1714506659335,-779.17120746,0.00037259,4]
[325033770,1714506659343,-9012.68282379,0.0003726,30]
[325033772,1714506659352,-500.0,0.0003726,7]
[325033774,1714506659363,-1626.24,0.0003726,7]
[325033776,1714506659372,-502.41,0.0003726,7]
[325033778,1714506659381,-608.6,0.0003726,7]
[325033780,1714506659390,-875.3,0.0003726,7]
[325033782,1714506659400,-501.6,0.0003726,7]
[325033783,1714506659409,-590.01,0.0003726,7]
[325033785,1714506659418,-500.0,0.0003726,7]
[325033787,1714506659428,-500.0,0.0003726,7]
[325033789,1714506659438,-511.48,0.0003726,7]
[325033791,1714506659446,-500.0,0.0003726,7]
[325033793,1714506659455,-427.0,0.0003726,7]
[325033795,1714506659464,-857.59,0.0003726,7]
[325033797,1714506659474,-596.17,0.0003726,7]
[325033799,1714506659483,-2209.36,0.0003726,7]
[325033801,1714506659492,-531.36,0.0003726,7]
[325033803,1714506659501,-500.0,0.0003726,7]
[325033805,1714506659510,-1171.47,0.0003726,7]
[325033807,1714506659520,-416.52,0.0003726,7]
[325033809,1714506659529,-658.82,0.0003726,7]
[325033811,1714506659538,-516.64,0.0003726,7]
[325033813,1714506659547,-1254.49,0.0003726,7]
[325033816,1714506659560,-816.32,0.0003726,7]
[325033818,1714506659569,-500.0,0.0003726,7]
[325033820,1714506659579,-753.25,0.0003726,7]
[325033822,1714506659587,-543.25,0.0003726,7]
[325033824,1714506659596,-673.59,0.0003726,7]
[325033826,1714506659605,-563.47,0.0003726,7]
[325033827,1714506659617,-556.12,0.0003726,7]
[325033829,1714506659630,-1000.0,0.00037305,2]
[325033832,1714506659640,-153.89720645,0.00037406,7]
[325033834,1714506659650,-1052.71,0.00037429,61]
[325033836,1714506659659,-1006.0,0.0003743,5]
[325033838,1714506659669,-564.28,0.00037433,7]
[325033840,1714506659678,-153.21482082,0.00037436,7]
[325033842,1714506659687,-402.15110194,0.00037451,7]
[325033844,1714506659696,-3542.326258,0.000375,32]
[325033845,1714506659708,-153.0,0.00037522,2]
[325033847,1714506659717,-153.0,0.00037522,2]
[325033849,1714506659726,-306.0,0.00037522,2]
[325033851,1714506659736,-425.4939263,0.00037522,2]
[325033853,1714506659745,-153.0,0.00037522,2]
[325033855,1714506659755,-203.8071857,0.00037522,2]
[325033857,1714506659764,-153.0,0.00037522,2]
[325033859,1714506659773,-153.0,0.00037522,2]
[325033861,1714506659783,-153.0,0.00037522,2]
[325033863,1714506659792,-153.0,0.00037522,2]
[325033865,1714506659802,-153.0,0.00037522,2]
[325033867,1714506659811,-166.58411324,0.00037534,7]
[325033869,1714506659820,-1626.24,0.00037534,7]
[325033871,1714506659829,-502.41,0.00037534,7]
[325033873,1714506659838,-608.6,0.00037534,7]
[325033875,1714506659847,-875.3,0.00037534,7]
[325033877,1714506659858,-501.6,0.00037534,7]
[325033879,1714506659867,-590.01,0.00037534,7]
[325033881,1714506659876,-500.0,0.00037534,7]
[325033883,1714506659885,-500.0,0.00037534,7]
[325033885,1714506659894,-511.48,0.00037534,7]
[325033887,1714506659903,-459.9,0.00037534,7]
[325033889,1714506659913,-857.59,0.00037534,7]
[325033891,1714506659922,-596.17,0.00037534,7]
[325033893,1714506659932,-2209.36,0.00037534,7]
[325033895,1714506659940,-531.36,0.00037534,7]
[325033897,1714506659950,-500.0,0.00037534,7]
[325033899,1714506659959,-1171.47,0.00037534,7]
[325033901,1714506659967,-658.82,0.00037534,7]
[325033903,1714506659977,-516.64,0.00037534,7]
[325033905,1714506659986,-1254.49,0.00037534,7]
[325033907,1714506659995,-816.32,0.00037534,7]
[325033909,1714506660004,-167.93447044,0.00037534,7]
[325033918,1714506660075,-753.25,0.00037534,7]
[325033920,1714506660086,-543.25,0.00037534,7]
[325033922,1714506660095,-673.59,0.00037534,7]
[325033924,1714506660104,-563.47,0.00037534,7]
[325033926,1714506660115,-151.0,0.00037534,2]
[325033928,1714506660124,-556.12,0.00037534,7]
[325033930,1714506660134,-151.0,0.00037534,2]
[325033932,1714506660143,-151.0,0.00037534,2]
[325033934,1714506660153,-151.0,0.00037534,2]
[325033936,1714506660162,-569.3,0.00037556,14]
[325033938,1714506660172,-153.0,0.00037564,2]
[325033940,1714506660181,-152.78647308,0.00037567,7]
[325033942,1714506660190,-152.78647308,0.00037593,7]
[325033944,1714506660199,-153.21482082,0.00037648,7]
[325033946,1714506660208,-154.76784823,0.00037701,4]
[325033948,1714506660218,-151.0,0.00037707,2]
[325033950,1714506660227,-564.28,0.00037707,7]
[325033951,1714506660236,-151.0,0.00037707,2]
[325033953,1714506660246,-471.95072,0.00037707,2]
[325033955,1714506660256,-471.95072,0.00037707,2]
[325033957,1714506660266,-151.0,0.00037707,2]
[325033959,1714506660276,-3299.127168,0.00037707,2]
[325033961,1714506660286,-3299.127168,0.00037707,2]
[325033963,1714506660295,-151.0,0.00037707,2]
[325033965,1714506660305,-625.410613,0.00037707,2]
[325033967,1714506660314,-625.410613,0.00037707,2]
[325033969,1714506660324,-223.862295,0.00037707,2]
[325033971,1714506660333,-223.862295,0.00037707,2]
[325033973,1714506660343,-1630.46798478,0.00037727,7]
[325033975,1714506660352,-402.15110194,0.00037778,7]
[325033977,1714506660364,-1630.46798478,0.00037801,7]
[325033979,1714506660373,-1626.24,0.00037808,7]
[325033981,1714506660383,-502.41,0.00037808,7]
[325033983,1714506660392,-608.6,0.00037808,7]
[325033985,1714506660401,-875.3,0.00037808,7]
[325033986,1714506660411,-501.6,0.00037808,7]
[325033988,1714506660420,-590.01,0.00037808,7]
[325033991,1714506660430,-500.0,0.00037808,7]
[325033992,1714506660439,-500.0,0.00037808,7]
[325033994,1714506660450,-511.48,0.00037808,7]
[325033996,1714506660459,-857.59,0.00037808,7]
[325033998,1714506660468,-596.17,0.00037808,7]
[325034000,1714506660477,-2209.36,0.00037808,7]
[325034002,1714506660487,-531.36,0.00037808,7]
[325034004,1714506660496,-500.0,0.00037808,7]
[325034006,1714506660505,-1171.47,0.00037808,7]
[325034008,1714506660514,-658.82,0.00037808,7]
[325034010,1714506660523,-516.64,0.00037808,7]
[325034012,1714506660532,-1254.49,0.00037808,7]
[325034014,1714506660542,-816.32,0.00037808,7]
[325034016,1714506660551,-753.25,0.00037808,7]
[325034018,1714506660562,-543.25,0.00037808,7]
[325034020,1714506660571,-673.59,0.00037808,7]
[325034022,1714506660581,-563.47,0.00037808,7]
[325034024,1714506660590,-556.12,0.00037808,7]
[325034026,1714506660600,-402.15110194,0.00037921,7]
[325034028,1714506660608,-402.15110194,0.00037954,7]
[325034030,1714506660622,-154.64623115,0.00037962,7]
[325034032,1714506660631,-564.28,0.00037981,7]
[325034034,1714506660645,-494.50291277,0.00037993,7]
[325034095,1714506661256,-3265.89348388,0.0003177,3]
[325034110,1714506661397,-353.14886738,0.0003177,3]
[325034134,1714506661661,814.32555754,0.00020913,2]
[325034156,1714506661863,369.74029441,0.00020913,5]
[325034173,1714506662022,514.30635662,0.00020912,2]
[325034178,1714506662210,157.31659292,0.00020913,2]
[325034203,1714506662542,5311.31173986,0.00020912,2]
[325039628,1714506721963,154.76784823,0.00020703,2]
[325040586,1714506732114,574.45001192,9.999e-05,2]
[325042221,1714506750076,166.666666,0.00027246,2]
[325045138,1714507556174,-211.61693391,0.00020565,2]
[325045139,1714507628128,-312.92952009,0.00015,2]
[325045140,1714507628148,-727.85716005,0.00020565,2]
[325045141,1714507628167,-166.666666,0.00020566,2]
[325045142,1714507628187,-9705.32495386,0.00021,2]
[325045150,1714507648098,-154.76784823,0.00020565,2]
[325045151,1714507648118,-2464.87193081,0.00021,2]
[325045182,1714507745239,-154.76784823,0.00020565,2]
[325045183,1714507745260,-2807.5535999,0.00020913,2]
[325045184,1714507745281,-12729.80311533,0.00021,2]
[325045185,1714507745301,-172.02083917,0.00021818,2]
[325045186,1714507745319,-6287.7108132,0.00021918,2]
[325045187,1714507745339,-165.538528,0.00022466,2]
[325045188,1714507745363,-209.677893,0.00022466,2]
[325045189,1714507745383,-166.666666,0.00022801,2]
[325045190,1714507745403,-160.571437,0.00023132,2]
[325045191,1714507745422,-166.666666,0.00023351,2]
[325045192,1714507745443,-166.666666,0.00023422,2]
[325045193,1714507745463,-620.00030495,0.00023976,2]
[325045194,1714507745483,-166.666666,0.00024044,2]
[325045195,1714507745505,-500.0,0.00024657,2]
[325045196,1714507745525,-166.666666,0.00024665,2]
[325045197,1714507745544,-154.78330338,0.00025,2]
[325045198,1714507745564,-620.00001525,0.00025175,2]
[325045199,1714507745584,-166.666666,0.00025287,2]
[325045200,1714507745607,-172.02083915,0.0002537,2]
[325045201,1714507745626,-166.666666,0.00025909,2]
[325045202,1714507745645,-620.00000076,0.00026434,2]
[325045203,1714507745665,-19189.2050261,0.00027246,2]
[325045204,1714507745684,-154.81422293,0.000274,2]
[325045205,1714507745704,-620.00000004,0.00027756,2]
[325045206,1714507745723,-209.677893,0.00028493,2]
[325045207,1714507753097,-172.02083915,0.00028922,4]
[325045208,1714507753117,-281.5,0.0002938,5]
[325045209,1714507753136,-187.0,0.0003,2]
[325045210,1714507753156,-281.5,0.00030291,5]
[325045211,1714507756213,363.99130579,0.00021,2]
[325045216,1714507772035,363.99130579,0.00021,2]
[325045217,1714507774142,16098.46283785,0.00021,2]
[325045218,1714507788061,363.99130579,0.00021,2]
[325045219,1714507810052,363.99130579,0.00021,2]
[325045220,1714507824157,363.99130579,0.00021,2]
[325045221,1714507827478,20210.50071864,0.00028596,2]
[325045222,1714507827498,4689.49928136,0.00028596,2]
[325045269,1714507832733,-476.28166,0.00031023,2]
[325045270,1714507832743,-476.28166,0.00031023,2]
[325045271,1714507832752,-281.5,0.00031202,7]